fUST/lending_fUST_20251215
["ID","MTS","AMOUNT","RATE_DAILY","PERIOD"]
[398516145,1765775165352,165.41,9.931e-05,2]
[398516146,1765775165811,220.54,0.00010695,2]
[398516147,1765775166824,152.59,0.000111,2]
[398516148,1765775167686,-196.26551965,0.00011459,2]
[398516149,1765775169160,-79.41448035,0.00011459,2]
[398516150,1765775169185,-75.15127585,0.000115,2]
[398516151,1765775195068,3170.4,0.000111,2]
[398516152,1765775210114,-77.43872415,0.000115,2]
[398516153,1765775210135,-152.59,0.000119,2]
[398516154,1765775210157,-330.82,0.00012223,2]
[398516155,1765775210177,-152.59,0.000123,2]
[398516156,1765775210197,-5000.0,0.00012771,2]
[398516157,1765775210217,-152.59,0.000128,2]
[398516158,1765775210240,-385.95,0.00012987,2]
[398516159,1765775210260,-152.59,0.000132,2]
[398516160,1765775210279,-500.0,0.00013259,2]
[398516161,1765775210298,-496.0,0.00013259,2]
[398516162,1765775210317,-500.0,0.00013272,2]
[398516163,1765775210337,-314.0743318,0.00013272,2]
[398516164,1765775210356,-300.0,0.00013272,2]
[398516165,1765775210374,-501.18817812,0.00013273,2]
[398516166,1765775210393,-500.0,0.00013273,2]
[398516167,1765775210412,-500.0,0.00013273,2]
[398516168,1765775210435,-692.98532126,0.00013273,2]
[398516169,1765775210454,-500.0,0.00013273,2]
[398516170,1765775210474,-500.0,0.00013273,2]
[398516171,1765775210493,-500.0,0.00013273,2]
[398516172,1765775210513,-182.27,0.00013273,2]
[398516173,1765775210533,-388.89524867,0.00013273,2]
[398516174,1765775210552,-572.79882347,0.00013273,2]
[398516175,1765775210570,-1031.03788225,0.00013273,2]
[398516176,1765775210589,-1637.65239628,0.00013273,2]
[398516177,1765775213308,-5000.0,0.00011385,2]
[398516178,1765775224483,0.01,0.000115,2]
[398516179,1765775224510,152.59,0.000115,2]
[398516180,1765775238931,150.0,7.808e-05,2]
[398516181,1765775239528,150.0,8.518e-05,2]
[398516182,1765775239842,150.0,9.228e-05,2]
[398516183,1765775240740,151.17,9.938e-05,2]
[398516184,1765775241670,188.97,0.00010648,2]
[398516185,1765775242091,226.76,0.00011358,2]
[398516187,1765775281976,151.64,0.000115,2]
[398516188,1765775291067,-151.64,0.000117,2]
[398516189,1765775291089,-29.92372092,0.000119,2]
[398516190,1765775312492,150.0,8.395e-05,2]
[398516191,1765775312837,150.0,9.159e-05,2]
[398516192,1765775313376,150.0,9.922e-05,2]
[398516193,1765775313701,150.0,0.00010685,2]
[398516194,1765775314072,150.0,0.00011448,2]
[398516196,1765775347730,161.78,0.000115,2]
[398516197,1765775351912,161.77,0.000115,2]
[398516198,1765775382779,150.0,7.809e-05,2]
[398516199,1765775383171,150.0,8.518e-05,2]
[398516200,1765775383599,150.0,9.228e-05,2]
[398516201,1765775384120,150.0,9.938e-05,2]
[398516202,1765775384674,150.0,0.00010648,2]
[398516203,1765775385118,150.0,0.00011358,2]
[398516204,1765775419960,161.78,0.000115,2]
[398516232,1765775432509,-409.553247,0.00011946,2]
[398516234,1765775432520,-300.0,0.00011946,2]
[398516239,1765775432566,-2600.50068785,0.00011946,2]
[398516241,1765775432576,-588.0,0.00011946,2]
[398516243,1765775432585,-180.59487127,0.00012007,2]
[398516245,1765775432594,-150.0,0.00012068,2]
[398516247,1765775432603,-7313.89529914,0.00012385,2]
[398516250,1765775432614,-825.0,0.00012385,2]
[398516252,1765775432625,-2288.031666,0.00012385,2]
[398516291,1765775438895,-529.46489486,0.0001226,2]
[398516292,1765775438949,-4401.79933298,0.0001226,2]
[398516293,1765775438961,-68.73577216,0.0001226,2]
[398516294,1765775438970,-382.32809414,0.00012384,2]
[398516295,1765775438980,-2453.45598216,0.00012385,2]
[398516296,1765775438989,-150.0,0.00012778,2]
[398516297,1765775438998,-300.0,0.00013138,2]
[398516298,1765775439007,-500.0,0.00013273,2]
[398516299,1765775439017,-195.30383884,0.00013273,2]
[398516300,1765775439026,-1950.1763127,0.00013401,2]
[398516301,1765775439037,-913.81780467,0.00013401,2]
[398516302,1765775439047,-476.0,0.0001346,2]
[398516303,1765775439056,-150.0,0.0001346,2]
[398516304,1765775439065,-151.0,0.0001346,2]
[398516305,1765775439074,-150.0,0.0001346,2]
[398516306,1765775439083,-500.0,0.0001346,2]
[398516307,1765775439092,-532.39499677,0.0001346,2]
[398516308,1765775439101,-156.74,0.00013488,2]
[398516309,1765775439110,-310.45166439,0.00013504,2]
[398516310,1765775439120,-300.0,0.00013537,2]
[398516311,1765775439129,-300.0,0.00013537,2]
[398516312,1765775439138,-300.0,0.00013537,2]
[398516313,1765775439148,-300.0,0.00013537,2]
[398516314,1765775439157,-300.0,0.00013537,2]
[398516315,1765775439166,-300.0,0.00013537,2]
[398516316,1765775439175,-300.0,0.00013537,2]
[398516317,1765775439188,-300.0,0.00013537,2]
[398516318,1765775439197,-300.0,0.00013537,2]
[398516319,1765775439206,-300.0,0.00013537,2]
[398516320,1765775439216,-300.0,0.00013537,2]
[398516321,1765775439225,-300.0,0.00013537,2]
[398516322,1765775439235,-300.0,0.00013537,2]
[398516323,1765775439244,-300.0,0.00013537,2]
[398516324,1765775439254,-300.0,0.00013537,2]
[398516325,1765775439263,-2472.46625095,0.00013556,2]
[398516326,1765775439274,-476.0,0.00013597,2]
[398516327,1765775439283,-150.0,0.00013597,2]
[398516328,1765775439293,-150.0,0.00013597,2]
[398516329,1765775439302,-500.0,0.00013597,2]
[398516330,1765775439311,-299.50601458,0.00013598,2]
[398516331,1765775439321,-1725.60471929,0.00013599,2]
[398516332,1765775439332,-2324.03475004,0.00013599,2]
[398516333,1765775439341,-185.0051009,0.00013619,2]
[398516334,1765775439350,-437.19596455,0.00013619,2]
[398516335,1765775439362,-1888.3931287,0.00013619,2]
[398516336,1765775439401,-773.00362275,0.00013619,2]
[398516337,1765775439411,-187.87940312,0.00013698,2]
[398516338,1765775439423,-312.12059688,0.00013698,2]
[398516339,1765775439432,-500.0,0.00013698,2]
[398516340,1765775439442,-501.9739301,0.00013698,2]
[398516341,1765775439451,-205.70878546,0.00013699,2]
[398516399,1765775441029,-3e-08,0.00013699,2]
[398516677,1765775443618,-161.78,0.000118,2]
[398516679,1765775443627,-161.78,0.000121,2]
[398516681,1765775443637,-161.78,0.000123,2]
[398516683,1765775443646,-14.66,0.000126,2]
[398516687,1765775443675,-147.12,0.000126,2]
[398516689,1765775443684,-161.78,0.000129,2]
[398516691,1765775443694,-500.0,0.00013698,2]
[398516693,1765775443703,-794.29121451,0.00013699,2]
[398516695,1765775443712,-1018.833808,0.00013699,2]
[398516697,1765775443721,-476.0,0.00013734,2]
[398516699,1765775443730,-200.69863996,0.00013734,2]
[398516701,1765775443740,-200.0,0.00013734,2]
[398516703,1765775443749,-500.0,0.00013734,2]
[398516705,1765775443758,-4124.15152902,0.00013756,2]
[398516708,1765775443767,-600.0,0.00013807,2]
[398516711,1765775443776,-554.28,0.0001382,2]
[398516713,1765775443785,-16713.25720672,0.0001382,2]
[398516727,1765775444008,-1780.163434,0.0001382,2]
[398516969,1765775446675,-161.78,0.000132,2]
[398516970,1765775446684,-161.78,0.000135,2]
[398516971,1765775446693,-500.0,0.00013698,2]
[398516972,1765775446702,-161.78,0.000137,2]
[398516973,1765775446711,-12143.92215,0.0001382,2]
[398518092,1765775464757,161.78,0.000115,2]
[398518113,1765775660260,172.4762683,6.364e-05,2]
[398518120,1765776048993,-5000.0,0.00012773,2]
[398518121,1765776057883,-601.0,0.00012773,2]
[398518122,1765776057913,-180.52297385,0.00012967,2]
[398518123,1765776057944,-300.0,0.00013032,2]
[398518125,1765776061860,500.0,0.00013032,2]
[398518126,1765776061938,500.0,0.00013032,2]
[398518127,1765776063864,300.0,0.00013032,2]
[398518128,1765776064827,500.0,0.00013032,2]
[398518129,1765776064864,500.0,0.00013032,2]
[398518130,1765776064902,332.75463236,0.00013032,2]
[398518132,1765776156057,-5000.0,0.00012655,2]
[398518133,1765776187124,-5000.0,0.00012592,2]
[398518134,1765776193310,-177.59743974,0.00012719,2]
[398518135,1765776193351,-640.91247917,0.00012783,2]
[398518136,1765776193392,-300.0,0.00013032,2]
[398518137,1765776204392,5000.0,0.00013033,2]
[398518138,1765776219256,150.0,7.79e-05,2]
[398518139,1765776219663,150.0,8.498e-05,2]
[398518140,1765776220093,150.0,9.206e-05,2]
[398518141,1765776220490,150.0,9.914e-05,2]
[398518142,1765776220909,150.0,0.00010623,2]
[398518143,1765776221326,172.48,0.00011331,2]
[398518144,1765776221708,-165.20621247,0.00013032,2]
[398518145,1765776221739,-400.4323735,0.00013032,2]
[398518146,1765776221767,-396.24122203,0.00013032,2]
[398518147,1765776221859,201.23,0.00012039,2]
[398518148,1765776222196,229.98,0.00012747,2]
[398518149,1765776227299,5000.0,0.00013033,2]
[398518150,1765776235931,1000.0,0.00019,120]
[398518151,1765776242630,154.03,0.000111,2]
[398518152,1765776260623,-5000.0,0.00012902,2]
[398518153,1765776290119,150.0,7.783e-05,2]
[398518154,1765776290287,150.0,8.491e-05,2]
[398518155,1765776290616,150.0,9.199e-05,2]
[398518156,1765776291147,150.0,9.906e-05,2]
[398518157,1765776291510,150.0,0.00010614,2]
[398518158,1765776291925,150.0,0.00011321,2]
[398518159,1765776293669,-5000.0,0.00012902,2]
[398518160,1765776296365,-5000.0,0.00012902,2]
[398518161,1765776303210,-300.0,0.00013032,2]
[398518162,1765776314646,1001.0,0.00013033,2]
[398518163,1765776317136,436.0,0.00013033,2]
[398518164,1765776319011,5000.0,0.00013033,2]
[398518177,1765776363297,170.13,0.00012,2]
[398518178,1765776363725,170.13,0.000124,2]
[398518179,1765776425905,170.13,0.00012,2]
[398518180,1765776484413,170.13,0.00012,2]
[398518184,1765776544053,170.13,0.000111,2]
[398518185,1765776558860,5000.0,0.00012783,2]
[398518186,1765776566387,608.73,0.00012329,2]
[398518187,1765776582600,5000.0,0.00012655,2]
[398518188,1765776587110,-160.3885083,0.00012783,2]
[398518189,1765776587131,-160.0,0.000128,2]
[398518190,1765776587154,-311.74025925,0.00012939,2]
[398518191,1765776587176,-500.0,0.00013032,2]
[398518192,1765776587197,-500.0,0.00013032,2]
[398518193,1765776587221,-500.0,0.00013032,2]
[398518194,1765776587243,-475.14179116,0.00013032,2]
[398518195,1765776587266,-356.60043218,0.00013032,2]
[398518196,1765776587287,-300.0,0.00013032,2]
[398518197,1765776587308,-11934.0461601,0.00013033,2]
[398518198,1765776587330,-500.09975796,0.00013273,2]
[398518199,1765776587350,-500.0,0.00013273,2]
[398518200,1765776587370,-500.0,0.00013273,2]
[398518201,1765776587390,-500.0,0.00013273,2]
[398518202,1765776587411,-500.0,0.00013273,2]
[398518203,1765776587436,-300.0,0.00013292,2]
[398518204,1765776587457,-300.0,0.00013292,2]
[398518205,1765776587486,-300.0,0.00013292,2]
[398518206,1765776587510,-300.0,0.00013292,2]
[398518207,1765776587532,-300.0,0.00013292,2]
[398518208,1765776587551,-300.0,0.00013292,2]
[398518209,1765776587575,-300.0,0.00013292,2]
[398518210,1765776587596,-300.0,0.00013292,2]
[398518211,1765776587618,-300.0,0.00013292,2]
[398518212,1765776587641,-300.0,0.00013292,2]
[398518213,1765776587661,-300.0,0.00013292,2]
[398518214,1765776587682,-300.0,0.00013292,2]
[398518215,1765776587703,-300.0,0.00013292,2]
[398518216,1765776587724,-300.0,0.00013292,2]
[398518217,1765776587744,-300.0,0.00013292,2]
[398518218,1765776587763,-223.91130599,0.00013292,2]
[398518219,1765776587783,-781.95340322,0.00013442,2]
[398518220,1765776587802,-2472.46625095,0.0001354,2]
[398518221,1765776587822,-600.0,0.00013557,2]
[398518222,1765776587843,-1001.0,0.00013581,2]
[398518223,1765776587862,-3124.68579926,0.0001362,2]
[398518224,1765776587882,-3543.43453569,0.00013622,2]
[398518225,1765776587902,-500.0,0.00013645,2]
[398518226,1765776587923,-150.0,0.00013645,2]
[398518227,1765776587943,-531.18,0.00013698,2]
[398518228,1765776587963,-531.18,0.00013698,2]
[398518229,1765776587983,-209.65421021,0.00013719,2]
[398518230,1765776588008,-327902.51758573,0.0001372,2]
[398518231,1765776612886,150.0,7.544e-05,2]
[398518233,1765776613897,150.0,8.23e-05,2]
[398518234,1765776613978,150.0,8.916e-05,2]
[398518235,1765776614272,150.0,9.601e-05,2]
[398518236,1765776614939,150.0,0.00010287,2]
[398518237,1765776615377,157.02,0.00010973,2]
[398518238,1765776615797,183.19,0.00011659,2]
[398518239,1765776616204,209.36,0.00012345,2]
[398518240,1765776616648,235.53,0.0001303,2]
[398518269,1765776631637,1001.0,0.00013025,2]
[398518280,1765776631732,-1435.27231834,0.00013447,2]
[398518351,1765776637867,-1189.0,0.00013447,2]
[398518354,1765776637879,-2375.72768166,0.00013447,2]
[398518356,1765776637888,-1001.0,0.00013573,2]
[398518358,1765776637897,-3021.28103238,0.00013583,2]
[398518361,1765776637916,-1978.71896762,0.00013583,2]
[398518363,1765776637925,-613.0,0.00013583,2]
[398518365,1765776637934,-510.1081482,0.00013698,2]
[398518367,1765776637943,-574.12855637,0.00013712,2]
[398518369,1765776637952,-261.7,0.00013716,2]
[398518371,1765776637960,-300.0,0.00013719,2]
[398518372,1765776637969,-502.57030577,0.0001372,2]
[398518375,1765776637979,-263.26685921,0.0001372,2]
[398518424,1765776639901,-1570.23052842,0.0001372,2]
[398518575,1765776663335,500.0,0.00013273,2]
[398518576,1765776680544,500.0,0.00013273,2]
[398518577,1765776682461,150.0,7.602e-05,2]
[398518578,1765776723256,504.41811205,0.00013273,2]
[398518579,1765776785596,504.06134986,0.00013273,2]
[398518580,1765776798580,500.0,0.00013273,2]
[398518582,1765777045656,5000.0,0.00013292,2]
[398518583,1765777068607,5000.0,0.00013292,2]
[398518584,1765777082598,0.01,0.000111,2]
[398518585,1765777082624,163.08,0.000111,2]
[398518586,1765777082917,163.09,0.000115,2]
[398518587,1765777083489,163.09,0.000118,2]
[398518588,1765777083587,163.09,0.000122,2]
[398518589,1765777083806,163.09,0.000126,2]
[398518590,1765777084127,163.09,0.000129,2]
[398518591,1765777091949,5000.0,0.00013292,2]
[398518592,1765777095397,500.0,0.00013273,2]
[398518593,1765777144338,156.19,0.00012,2]
[398518594,1765777144710,156.19,0.000122,2]
[398518595,1765777145057,156.19,0.000124,2]
[398518596,1765777206924,155.11,0.00012,2]
[398518597,1765777207249,155.11,0.000122,2]
[398518598,1765777207529,155.11,0.000124,2]
[398518599,1765777207852,155.11,0.000126,2]
[398518603,1765777258782,-155.11,0.000128,2]
[398518604,1765777258814,-155.11,0.00013,2]
[398518605,1765777258846,-4379.57,0.00013035,2]
[398518606,1765777258999,-620.43,0.00013035,2]
[398518607,1765777259028,-605.0,0.00013035,2]
[398518608,1765777265583,162.38,0.00012,2]
[398518609,1765777265884,162.38,0.000123,2]
[398518610,1765777266174,162.38,0.000127,2]
[398518611,1765777266664,162.38,0.00013,2]
[398518612,1765777269125,203.2032952,0.00012575,2]
[398518613,1765777272555,5000.0,0.00013035,2]
[398518618,1765777295138,1696.4267048,0.00013035,2]
[398518619,1765777295167,3303.5732952,0.00013035,2]
[398518620,1765777311709,5000.0,0.00013035,2]
[398518621,1765777319704,1696.4367048,0.00013035,2]
[398518622,1765777319729,3303.5632952,0.00013035,2]
[398518623,1765777324043,162.37,0.000111,2]
[398518624,1765777324263,162.37,0.000126,2]
[398518625,1765777343783,5000.0,0.00013035,2]
[398518628,1765777367038,1371.7067048,0.00013035,2]
[398518629,1765777367062,3628.2932952,0.00013035,2]
[398518630,1765777448978,150.0,7.136e-05,2]
[398518631,1765777449412,150.0,7.784e-05,2]
[398518632,1765777449862,159.9,8.433e-05,2]
[398518633,1765777450307,213.2,9.082e-05,2]
[398518634,1765777450720,266.5,9.73e-05,2]
[398518635,1765777451148,319.8,0.00010379,2]
[398518636,1765777451549,373.1,0.00011028,2]
[398518637,1765777451952,426.39,0.00011676,2]
[398518638,1765777452412,479.69,0.00012325,2]
[398518641,1765777462456,-2076.32339966,0.00012904,2]
[398518642,1765777523362,150.0,7.049e-05,2]
[398518643,1765777523773,150.0,7.689e-05,2]
[398518644,1765777524205,150.0,8.33e-05,2]
[398518645,1765777524651,150.0,8.971e-05,2]
[398518646,1765777525070,150.0,9.612e-05,2]
[398518647,1765777525468,150.0,0.00010252,2]
[398518648,1765777525881,150.0,0.00010893,2]
[398518649,1765777526315,167.92,0.00011534,2]
[398518650,1765777526789,188.91,0.00012175,2]
[398518654,1765777527219,209.9,0.00012816,2]
[398518670,1765777593363,4230.63320068,0.00012904,2]
[398518671,1765777593390,769.36679932,0.00012904,2]
[398518674,1765777818275,5000.0,0.00012997,2]
[398518687,1765777831895,-606.0,0.00013087,2]
[398518688,1765777831904,-200.88819339,0.00013153,2]
[398518689,1765777831916,-38.82685246,0.00013272,2]
[398518690,1765777831951,-212.17314754,0.00013272,2]
[398518691,1765777831961,-234.07805333,0.00013272,2]
[398518693,1765777837921,-965.92194667,0.00013272,2]
[398518694,1765777837930,-300.0,0.00013272,2]
[398518695,1765777837940,-527.03161684,0.00013273,2]
[398518696,1765777837949,-500.0,0.00013273,2]
[398518697,1765777837959,-428.01021746,0.00013273,2]
[398518698,1765777837986,-71.98978254,0.00013273,2]
[398518699,1765777837996,-500.0,0.00013273,2]
[398518700,1765777838005,-398.13709913,0.00013273,2]
[398518827,1765777840184,-101.86290087,0.00013273,2]
[398518829,1765777840193,-292.69843416,0.00013273,2]
[398518831,1765777840204,-207.30156584,0.00013273,2]
[398518833,1765777840213,-500.0,0.00013273,2]
[398518835,1765777840222,-500.0,0.00013273,2]
[398518836,1765777840231,-444.31900132,0.00013537,2]
[398518838,1765777840240,-3297.62407268,0.00013554,2]
[398518840,1765777840249,-2472.46625095,0.00013583,2]
[398518842,1765777840258,-574.12855637,0.00013612,2]
[398518844,1765777840267,-211.76660654,0.00013619,2]
[398518846,1765777840276,-246.536,0.00013619,2]
[398518848,1765777840285,-16295.69333368,0.0001362,2]
[398518850,1765777840296,-2665.76654565,0.0001362,2]
[398518945,1765777843004,-5000.0,0.00013139,2]
[398518946,1765777843013,-21507.97401277,0.0001362,2]
[398518951,1765777862193,161.93,0.00012,2]
[398518952,1765777862586,161.93,0.000127,2]
[398518953,1765777912348,150.0,7.687e-05,2]
[398518954,1765777912765,150.0,8.386e-05,2]
[398518955,1765777913223,150.0,9.084e-05,2]
[398518956,1765777913668,150.0,9.783e-05,2]
[398518957,1765777924340,161.93,0.00012,2]
[398518958,1765778000279,201.8946193,0.00012614,2]
[398518959,1765778051701,6148.0,0.00019,120]
[398518960,1765778068279,3712.3253807,0.00012997,2]
[398518961,1765778068304,1287.6746193,0.00012997,2]
[398518962,1765778091443,5000.0,0.00013,2]
[398518963,1765778102258,158.79,0.00012,2]
[398518964,1765778106003,150.0,7.161e-05,2]
[398518965,1765778106201,150.0,7.812e-05,2]
[398518966,1765778115251,4541.22,0.00013,2]
[398518967,1765778115277,458.78,0.00013,2]
[398518968,1765778130233,150.0,8.463e-05,2]
[398518969,1765778130653,150.0,9.114e-05,2]
[398518970,1765778131050,150.0,9.765e-05,2]
[398518971,1765778131472,175.66,0.00010416,2]
[398518972,1765778131903,204.93,0.00011067,2]
[398518973,1765778132336,234.21,0.00011718,2]
[398518974,1765778132755,263.48,0.00012369,2]
[398518975,1765778139224,5000.0,0.00013,2]
[398518976,1765778162238,3212.95,0.00013,2]
[398518977,1765778162268,1787.05,0.00013,2]
[398518978,1765778163585,159.44,0.00012,2]
[398518979,1765778185621,5000.0,0.00013,2]
[398518980,1765778199628,150.0,8.293e-05,2]
[398518981,1765778200073,150.0,9.046e-05,2]
[398518982,1765778200478,150.0,9.8e-05,2]
[398518983,1765778200889,150.0,0.00010554,2]
[398518984,1765778209770,2453.52,0.00013,2]
[398518985,1765778209827,2546.48,0.00013,2]
[398518986,1765778224223,159.44,0.00012,2]
[398518987,1765778232664,5000.0,0.00013,2]
[398518988,1765778256740,2294.09,0.00013,2]
[398518989,1765778256767,2705.91,0.00013,2]
[398518991,1765778279815,5000.0,0.00013,2]
[398518992,1765778304513,2294.1,0.00013,2]
[398518993,1765778304540,2705.9,0.00013,2]
[398518995,1765778327411,5000.0,0.00013,2]
[398518996,1765778329758,150.0,8.409e-05,2]
[398518997,1765778330173,150.0,9.173e-05,2]
[398518998,1765778330840,150.0,9.938e-05,2]
[398518999,1765778331024,154.69,0.00010702,2]
[398519000,1765778331440,193.37,0.00011467,2]
[398519001,1765778331881,232.04,0.00012231,2]
[398519002,1765778332307,270.71,0.00012996,2]
[398519005,1765778350140,993.3,0.00013,2]
[398519006,1765778350166,4006.7,0.00013,2]
[398519008,1765778373261,5000.0,0.00013,2]
[398519009,1765778397675,993.31,0.00013,2]
[398519010,1765778397699,4006.69,0.00013,2]
[398519011,1765778402324,185.79,7.156e-05,2]
[398519012,1765778402778,371.58,7.806e-05,2]
[398519013,1765778403259,557.37,8.457e-05,2]
[398519014,1765778403740,743.15,9.107e-05,2]
[398519015,1765778404220,928.94,9.758e-05,2]
[398519016,1765778405015,1114.73,0.00010408,2]
[398519017,1765778405865,1300.52,0.00011059,2]
[398519018,1765778406424,1486.31,0.00011709,2]
[398519019,1765778406914,1672.1,0.0001236,2]
[398519020,1765778420685,5000.0,0.00013,2]
[398519021,1765778442508,150.0,5.2e-07,2]
[398519022,1765778443827,150.0,5.2e-07,2]
[398519023,1765778444484,4700.01,0.00013,2]
[398519024,1765778444509,299.99,0.00013,2]
[398519025,1765778444560,150.0,5.2e-07,2]
[398519026,1765778445597,150.0,5.2e-07,2]
[398519027,1765778446627,150.0,5.2e-07,2]
[398519029,1765778462255,168.26,0.00012,2]
[398519030,1765778467778,5000.0,0.00013,2]
[398519031,1765778478925,150.0,7.156e-05,2]
[398519032,1765778479340,166.4,7.807e-05,2]
[398519033,1765778479758,249.6,8.458e-05,2]
[398519034,1765778480155,332.8,9.108e-05,2]
[398519035,1765778480580,416.0,9.759e-05,2]
[398519036,1765778480979,499.2,0.00010409,2]
[398519037,1765778481386,582.4,0.0001106,2]
[398519038,1765778481778,665.6,0.0001171,2]
[398519039,1765778482187,748.8,0.00012361,2]
[398519040,1765778484690,270.96,0.00013,2]
[398519041,1765778484715,4729.04,0.00013,2]
[398519042,1765778492533,5000.0,0.00013,2]
[398519043,1765778517305,270.97,0.00013,2]
[398519044,1765778517330,4729.03,0.00013,2]
[398519045,1765778539664,5000.0,0.00013,2]
[398519046,1765778553780,150.0,7.01e-05,2]
[398519047,1765778554191,120.98,7.647e-05,2]
[398519048,1765778554219,29.02,7.647e-05,2]
[398519049,1765778554622,150.0,8.284e-05,2]
[398519050,1765778555134,189.39,8.922e-05,2]
[398519051,1765778555491,236.74,9.559e-05,2]
[398519052,1765778555898,284.09,0.00010196,2]
[398519053,1765778556317,331.43,0.00010834,2]
[398519054,1765778556729,378.78,0.00011471,2]
[398519055,1765778557152,426.13,0.00012108,2]
[398519056,1765778557565,473.48,0.00012745,2]
[398519057,1765778562803,5000.0,0.00013,2]
[398519058,1765778586352,2500.95,0.00013,2]
[398519059,1765778586382,2499.05,0.00013,2]
[398519060,1765778606573,163.19,0.00012,2]
[398519061,1765778609337,5000.0,0.00013,2]
[398519062,1765778625583,150.0,8.295e-05,2]
[398519063,1765778626097,150.0,9.049e-05,2]
[398519064,1765778626510,150.0,9.803e-05,2]
[398519065,1765778626903,150.0,0.00010557,2]
[398519066,1765778627305,150.0,0.00011311,2]
[398519068,1765778627700,150.0,0.00012066,2]
[398519069,1765778633001,1437.77,0.00013,2]
[398519070,1765778633027,3562.23,0.00013,2]
[398519092,1765778656447,5000.0,0.00013,2]
[398519093,1765778681565,1437.78,0.00013,2]
[398519094,1765778681594,3562.22,0.00013,2]
[398519095,1765778697713,5000.0,0.00013,2]
[398519096,1765778706081,1437.79,0.00013,2]
[398519097,1765778706107,3562.21,0.00013,2]
[398519098,1765778730118,5000.0,0.00013,2]
[398519101,1765778753027,5000.0,0.00013,2]
[398519102,1765778757187,0.01,7.006e-05,2]
[398519103,1765778757217,149.99,7.006e-05,2]
[398519104,1765778757349,150.0,7.643e-05,2]
[398519105,1765778757825,150.0,8.28e-05,2]
[398519106,1765778758217,150.0,8.917e-05,2]
[398519107,1765778758653,150.0,9.554e-05,2]
[398519108,1765778759153,150.0,0.00010191,2]
[398519109,1765778759578,150.0,0.00010828,2]
[398519110,1765778759998,150.0,0.00011465,2]
[398519112,1765778763577,154.64,0.000111,2]
[398519113,1765778763923,154.64,0.000116,2]
[398519114,1765778764388,154.64,0.000121,2]
[398519115,1765778764859,154.64,0.000126,2]
[398519116,1765778777048,5000.0,0.00013,2]
[398519117,1765778796130,186.72919837,0.0001279,5]
[398519118,1765778800861,2994.73080163,0.00013,2]
[398519119,1765778800885,2005.26919837,0.00013,2]
[398519120,1765778824357,5000.0,0.00013,2]
[398519121,1765778824919,150.0,7.004e-05,2]
[398519122,1765778825177,165.86,0.000111,2]
[398519123,1765778825320,150.0,7.641e-05,2]